Workbook

Sheet Base Sheet
A1: First Name | B1: Last Name | E1: HW 1 | F1: HW 2 | G1: HW 3 | H1: HW 4 | I1: HW 5 | J1: HW 6 | K1: HW 7 | L1: HW 8 | M1: Test 1 | N1: Test 2 | O1: Test 3 | P1: Test 4 | Q1: Test 5 | R1: Test 6 | S1: Test 7 | T1: Test 8 | U1: FExam | V1: Avg | W1: Grade | AA1: AdvAvg | AB1: Adv Grade | AC1: A Req | AD1: A Imp | AE1: BReq | AF1: BImp | AG1: CReq | AH1: CImp | AI1: DReq | AJ1: DImp | AK1: MT2Avg | AL1: MT2Grade | AM1: AReq | AN1: AImp | AO1: BReq | AP1: BImp | AQ1: CReq | AR1: CImp | AS1: DReq | AT1: DImp | AU1: MT1Avg | AV1: MT1Grade | AW1: AHW | AX1: BAHW | AY1: UHW | AZ1: SHW | BA1: HWStatus | BB1: TestAs | BC1: TestBs | BD1: TestCs | BE1: TestDs | BF1: TestFs | BG1: TestMFs | BH1: TStatus | BJ1: HW Avg | BK1: Low Test | BL1: T Spread | BM1: Low Final | BN1: Hi Final | BS1: fl state | BT1: AptFact | BU1: FExamLG | BV1: ChangeT | BW1: ChangeF | BX1: TermTrend | BY1: FTrend | BZ1: BFGrade | CA1: HW Fact | CB1: HW Avg 1 | CC1: TAvg 1 | CD1: TAvgO1 | CE1: TAvgO2 | CF1: HW Avg 2 | CG1: T Avg 2 | CH1: TAvgO1 | CI1: TAvgO2 | CJ1: Test to Ct | CK1: Adv HW Adj | CL1: Ex Tests | CM1: TAvg A | CN1: TAvgO1 | CO1: TAvgO2 | CR1: MT1 | CS1: MT2 | CT1: Adv | CU1: Final | CV1: MT21Slope | CW1: MTA2Slope | CX1: AFSlope | CY1: DMT21Slope | CZ1: DMTA2Slope | DA1: DAFSlope | DB1: Test1 | DC1: Test 2 | DD1: Test 3 | DE1: Test 4 | DF1: Test 5 | DG1: Test 6 | DH1: Test 7 | DI1: Test 8 | DK1: MT2 | DL1: AHW | DM1: BAHW | DN1: UHW | DO1: SHW | DP1: TestAs | DQ1: TestBs | DR1: TestCs | DS1: TestDs | DT1: TestFs | DU1: TestMFs | DW1: MT1 | DX1: AHW | DY1: BAHW | DZ1: UHW | EA1: SHW | EB1: TestAs | EC1: TestBs | ED1: TestCs | EE1: TestDs | EF1: TestFs | EG1: TestMFs
A2: WhoEver | B2: you are | F2: 5 | G2: 10 | H2: 10 | I2: 12 | J2: 5 | K2: 10 | L2: 10 | M2: 30 | N2: 32 | O2: 38 | P2: 42 | Q2: 45 | R2: 41 | S2: 48 | T2: 58 | U2: 275 | V2: =AA2*0.7+U2/10 -> 77.45 | W2: =VLOOKUP(V2,E$21:F$31,2) -> B+ | AA2: =(CM2+CK2)/0.7 -> 71.35714286 | AB2: =VLOOKUP(AA2,G$21:H$25,2) -> C | AC2: =(G$25-AA2*0.7)/30*300 -> 350.5 | AD2: =(AC2/5)/CM2 -> 1.679041916 | AE2: =(G$24-0.7*AA2)/30*300 -> 230.5 | AF2: =(AE2/5)/CM2 -> 1.104191617 | AG2: =(G$23-0.7*AA2)/30*300 -> 100.5 | AH2: =(AG2/5)/CM2 -> 0.4814371257 | AI2: =(G$22-0.7*AA2)/30*300 -> 0.5 | AJ2: =(AI2/5)/CM2 -> 0.002395209581 | AK2: =(CF2+CG2)/0.7 -> 64 | AL2: =VLOOKUP(AK2,G$21:H$25,2) -> C | AM2: =(G$25-(AK2*0.425+4))/(100*(1-0.475))*60 -> 61.48571429 | AN2: =AM2/(SUM($M2:$Q2)/5) -> 1.644003056 | AO2: =(G$24-(AK2*0.425+4))/(100*(1-0.475))*60 -> 47.77142857 | AP2: =AO2/(SUM($M2:$Q2)/5) -> 1.277310924 | AQ2: =(G$23-(AK2*0.425+4))/(100*(1-0.475))*60 -> 32.91428571 | AR2: =AQ2/(SUM($M2:$Q2)/5) -> 0.8800611154 | AS2: =(G$22-(AK2*0.425+4))/(100*(1-0.475))*60 -> 21.48571429 | AT2: =AS2/(SUM($M2:$Q2)/5) -> 0.5744843392 | AU2: =(CB2+CC2)/0.7 -> 54.76190476 | AV2: =VLOOKUP(AU2,G$21:H$25,2) -> D | AW2: =COUNTIF(E2:L2,">=8") -> 5 | AX2: =COUNTIF(E2:L2,"=5") -> 2 | AY2: =COUNTIF(E2:L2,"=0") -> 0 | AZ2: =8-COUNT(E2:L2) -> 1 | BA2: =VLOOKUP((DX2*BX$17+DY2*BX$18+DZ2*BX$20+EA2*BX$19),BW$23:BX$27,2) -> Troublesome | BB2: =COUNTIF(M2:T2,">51") -> 1 | BC2: =COUNTIF(M2:T2,">=44")-BB2 -> 2 | BD2: =COUNTIF(M2:T2,">=36")-(BB2+BC2) -> 3 | BE2: =COUNTIF(M2:T2,">=30")-SUM(BB2:BD2) -> 2 | BF2: =COUNTIF(M2:T2,"<30") -> 0 | BG2: =COUNTIF(M2:T2,"<=18") -> 0 | BH2: =VLOOKUP(((EB2+EC2)*BX$40+ED2*BX$43+EE2*BX$41+(EF2-EG2)*BX$39+EG2*BX$42),BW$47:BX$51,2) -> Troublesome | BJ2: =(SUM(E2:J2)+2*SUM(K2:L2))/10 -> 8.2 | BK2: =IF(MIN(M2:T2)<(AVERAGE(M2:T2)-12),1,0) -> 0 | BL2: =IF(STDEV(M2:T2)>12,1,0) -> 0 | BM2: =IF(U2/5<(AVERAGE(M2:T2)-12),1,0) -> 0 | BN2: =IF(U2/5>(AVERAGE(M2:T2)+10),1,0) -> 1 | BO2: =IF(BK2=1,"lt","") ->  | BP2: =IF(BL2=1,"ts","") ->  | BQ2: =IF(BM2=1,"lf","") ->  | BR2: =IF(BN2=1,"hf","") -> hf | BS2: =IF(SUM(BK2:BN2)=0,"",CONCATENATE("fl:",BO2,BP2,BQ2,BR2)) -> fl:hf | BT2: =IF(CA2<0,0,IF(CA2>20,1,CA2/20)) -> 0.75 | BU2: =VLOOKUP((U2/3),G$21:H$25,2) -> A | BV2: =AA2-AU2 -> 16.5952381 | BW2: =U2/3-AA2 -> 20.30952381 | BX2: =VLOOKUP(BV2,E$42:F$46,2) -> MI | BY2: =VLOOKUP(BW2,E$49:F$53,2) -> MI | BZ2: =VLOOKUP(V2,G$21:H$25,2) -> B | CA2: =(3*AW2+AX2+0*AY2+-2*AZ2) -> 15 | CB2: =SUM(E2:G2)/3 -> 5 | CC2: =MAX(CD2:CE2) -> 33.33333333 | CD2: =SUM(M2:O2)/3 -> 33.33333333 | CE2: 0 | CF2: =SUM(E2:I2)/5 -> 7.4 | CG2: =MAX(CH2:CI2) -> 37.4 | CH2: =SUM(M2:Q2)/5 -> 37.4 | CJ2: =8-CL2 -> 8 | CK2: =(SUM(E2:J2)+2*SUM(K2:L2))/10 -> 8.2 | CM2: =MAX(CN2:CO2) -> 41.75 | CN2: =SUM(M2:T2)/CJ2 -> 41.75 | CO2: 0 | CR2: =AU2 -> 54.76190476 | CS2: =AK2 -> 64 | CT2: =AA2 -> 71.35714286 | CU2: =V2 -> 77.45 | CV2: =(CS2-CR2)/(5-3) -> 4.619047619 | CW2: =(CT2-CS2)/(8-5) -> 2.452380952 | CX2: =CU2-CT2 -> 6.092857143 | CY2: =DEGREES(ATAN(CV2)) -> 77.78428087 | CZ2: =DEGREES(ATAN(CW2)) -> 67.81598665 | DA2: =DEGREES(ATAN(CX2)) -> 80.6793369 | DB2: =IF(M2="","",VLOOKUP(M2,$K$21:$L$26,2)) -> D | DC2: D | DD2: C | DE2: C | DF2: B | DG2: C | DH2: B | DI2: A | DL2: =COUNTIF(E2:I2,">=8") -> 3 | DM2: =COUNTIF(E2:I2,"=5") -> 1 | DN2: =COUNTIF(E2:I2,"=0") -> 0 | DO2: =5-COUNT(E2:I2) -> 1 | DP2: =COUNTIF(M2:Q2,">51") -> 0 | DQ2: =COUNTIF(M2:Q2,">=44")-DP2 -> 1 | DR2: =COUNTIF(M2:Q2,">=36")-(DP2+DQ2) -> 2 | DS2: =COUNTIF(M2:Q2,">=30")-SUM(DP2:DR2) -> 2 | DT2: =COUNTIF(M2:Q2,"<30") -> 0 | DU2: =COUNTIF(M2:Q2,"<=18") -> 0 | DX2: =COUNTIF(E2:G2,">=8") -> 1 | DY2: =COUNTIF(E2:G2,"=5") -> 1 | DZ2: =COUNTIF(E2:G2,"=0") -> 0 | EA2: =3-COUNT(E2:G2) -> 1 | EB2: =COUNTIF(M2:O2,">51") -> 0 | EC2: =COUNTIF(M2:O2,">=44")-EB2 -> 0 | ED2: =COUNTIF(M2:O2,">=36")-(EB2+EC2) -> 1 | EE2: =COUNTIF(M2:O2,">=30")-SUM(EB2:ED2) -> 2 | EF2: =COUNTIF(M2:O2,"<30") -> 0 | EG2: =COUNTIF(M2:O2,"<=18") -> 0
F8: F | G8: D | H8: D+ | I8: C- | J8: C | K8: C+ | L8: B- | M8: B | N8: B+ | O8: A- | P8: A
F9: 0 | G9: 50 | H9: 53 | I9: 57 | J9: 60 | K9: 64 | L9: 69 | M9: 73 | N9: 77 | O9: 82 | P9: 85 | AK9: A | AL9: =COUNTIF(AL$2:AL$2,AK9) -> 0
AK10: B | AL10: =COUNTIF(AL$2:AL$2,AK10) -> 0
AK11: C | AL11: =COUNTIF(AL$2:AL$2,AK11) -> 1
AK12: D | AL12: =COUNTIF(AL$2:AL$2,AK12) -> 0
AK13: F | AL13: =COUNTIF(AL$2:AL$2,AK13) -> 0
AK14: MF | AL14: =COUNTIF(AK2:AK2,"<30") -> 0 | AU14: MF | AV14: =COUNTIF(AU2:AU2,"<30") -> 0
M15: =AVERAGE(M2:M11) -> 51.5 | N15: 54.5 | O15: 60 | P15: 63.5 | Q15: 45 | R15: 41 | S15: 48 | T15: 58 | U15: =AVERAGE(U2:U2) -> 275
L16: Diff Fact | M16: =M15/AVERAGE($M15:$T15) -> 0.9774614472 | N16: 1.034400949 | O16: 1.138790036 | P16: 1.205219454 | Q16: 0.8540925267 | R16: 0.778173191 | S16: 0.9110320285 | T16: 1.100830368 | BW16: HW Ass Rate Table
BW17: A | BX17: 50
U18: FExam D | V18: =AVERAGE(M15:T15)/(U15/5) -> 0.9579545455 | BW18: M | BX18: 20
U19: FE Fact | V19: =1+(V18-1)/2 -> 0.9789772727 | BW19: S | BX19: -20
BW20: U | BX20: 0
E21: 0 | F21: F | G21: 0 | H21: F | K21: 0 | L21: MF | M21: =COUNTIF(DB$2:DB$11,$L21) -> 0 | N21: 0 | O21: 0 | P21: 0 | Q21: 0 | R21: 0 | S21: 0 | T21: 0
E22: 50 | F22: D | G22: 50 | H22: D | K22: 19 | L22: F | M22: 0 | N22: 0 | O22: 0 | P22: 0 | Q22: 0 | R22: 0 | S22: 0 | T22: 0 | U22: A | V22: =COUNTIF(W$2:W$2,"A")+COUNTIF(W$2:W$2,"A-") -> 0 | W22: =V22/SUM(V$22:V$27) -> 0
E23: 53 | F23: D+ | G23: 60 | H23: C | K23: 30 | L23: D | M23: 1 | N23: 1 | O23: 0 | P23: 0 | Q23: 0 | R23: 0 | S23: 0 | T23: 0 | U23: B | V23: =COUNTIF(W$2:W$2,"B")+COUNTIF(W$2:W$2,"B-")+COUNTIF(W$2:W$2,"B+") -> 1 | W23: 0.1111111111 | BW23: -100 | BX23: Very Serious
E24: 57 | F24: C- | G24: 73 | H24: B | K24: 36 | L24: C | M24: 0 | N24: 0 | O24: 1 | P24: 1 | Q24: 0 | R24: 1 | S24: 0 | T24: 0 | U24: C | V24: =COUNTIF(W$2:W$2,"C")+COUNTIF(W$2:W$2,"C-")+COUNTIF(W$2:W$2,"C+") -> 0 | W24: 0 | BW24: 10 | BX24: Serious
E25: 60 | F25: C | G25: 85 | H25: A | K25: 43 | L25: B | M25: 0 | N25: 0 | O25: 0 | P25: 0 | Q25: 1 | R25: 0 | S25: 1 | T25: 0 | U25: D | V25: =COUNTIF(W$2:W$2,"D")+COUNTIF(W$2:W$2,"D+") -> 0 | W25: 0 | BW25: 40 | BX25: Troublesome
E26: 64 | F26: C+ | K26: 51 | L26: A | M26: 0 | N26: 0 | O26: 0 | P26: 0 | Q26: 0 | R26: 0 | S26: 0 | T26: 1 | U26: F | V26: =COUNTIF(W$2:W$2,"F") -> 0 | W26: 0 | BW26: 60 | BX26: OK
E27: 69 | F27: B- | U27: W | V27: 8 | W27: 0.8888888889 | BW27: 120 | BX27: Outstanding
E28: 73 | F28: B
E29: 77 | F29: B+
E30: 82 | F30: A-
E31: 85 | F31: A
E34: 0 | F34: 0
E35: 5 | F35: 0.35
E36: 6 | F36: 0.5
E37: 7 | F37: 0.75
E38: 8 | F38: 1
BW39: Failed | BX39: -20
A40: No Students | B40: =COUNTA(B2:B11) -> 1 | BW40: Good | BX40: 50
E41: Term Trend | BW41: Marginal | BX41: 0
E42: -100 | F42: MD | BW42: Miserable | BX42: -50
E43: -8 | F43: D | BW43: OK | BX43: 15
E44: -2.5 | F44: C
E45: 1.5 | F45: I
E46: 4 | F46: MI
BW47: -200 | BX47: Very Serious
E48: Final Trend | BW48: -60 | BX48: Serious
E49: -100 | F49: MD | BW49: 0 | BX49: Troublesome
E50: -12 | F50: D | BW50: 45 | BX50: OK
E51: -5 | F51: C | BW51: 110 | BX51: Great Performance
E52: 5 | F52: I
E53: 15 | F53: MI
